fUST/lending_fUST_20260117
["ID","MTS","AMOUNT","RATE_DAILY","PERIOD"]
[402291138,1768649477424,-500.0,0.0001726,2]
[402291139,1768649477435,-500.0,0.0001726,3]
[402291140,1768649477446,-1254.59,0.0001726,3]
[402291141,1768649477456,-500.0,0.0001726,3]
[402291142,1768649477466,-500.0,0.0001726,3]
[402291143,1768649477476,-500.0,0.0001726,3]
[402291144,1768649477486,-500.0,0.0001726,2]
[402291145,1768649477497,-500.0,0.0001726,2]
[402291146,1768649477507,-558.56952716,0.00017292,28]
[402291147,1768649477517,-412.13348321,0.00017292,28]
[402291148,1768649477527,-574.12855637,0.000173,2]
[402291149,1768649477537,-2773.56790519,0.000173,2]
[402291150,1768649477763,-549.58,0.00017325,2]
[402291151,1768649477775,-500.70048562,0.00017327,25]
[402291152,1768649477784,-509.397442,0.00017378,7]
[402291153,1768649477795,-832.8568996,0.00017406,2]
[402291154,1768649477805,-5000.0,0.00017412,2]
[402291155,1768649477815,-202.667,0.00017455,2]
[402291156,1768649477824,-200.983,0.00017455,2]
[402291157,1768649477834,-222.015,0.00017455,2]
[402291158,1768649477844,-232.572,0.00017455,2]
[402291159,1768649477853,-244.191,0.00017455,2]
[402291160,1768649477864,-250.0,0.00017455,2]
[402291161,1768649477873,-200.096,0.00017455,2]
[402291162,1768649477883,-261.666,0.00017455,2]
[402291163,1768649477893,-267.705,0.00017455,2]
[402291164,1768649477903,-275.1798858,0.00017519,32]
[402291165,1768649477912,-500.0,0.00017534,3]
[402291166,1768649477923,-500.0,0.00017534,3]
[402291167,1768649477932,-500.0,0.00017534,3]
[402291168,1768649477942,-500.0,0.00017534,3]
[402291169,1768649477952,-500.0,0.00017534,3]
[402291170,1768649477961,-500.0,0.00017534,3]
[402291171,1768649477971,-554.51009114,0.00017534,3]
[402291172,1768649477981,-1541.12,0.00017534,3]
[402291173,1768649477990,-691.16,0.00017534,3]
[402291174,1768649478001,-500.0,0.00017534,3]
[402291175,1768649478010,-500.0,0.00017534,3]
[402291176,1768649478019,-500.0,0.00017534,3]
[402291177,1768649478029,-500.0,0.00017534,3]
[402291178,1768649478038,-500.0,0.00017534,3]
[402291179,1768649478048,-500.0,0.00017534,3]
[402291180,1768649478058,-500.0,0.00017534,3]
[402291181,1768649478067,-500.0,0.00017534,3]
[402291182,1768649478077,-536.25086162,0.00017534,3]
[402291183,1768649478087,-557.26,0.00017534,3]
[402291184,1768649478096,-904.31,0.00017534,3]
[402291185,1768649478106,-500.0,0.00017534,3]
[402291186,1768649478117,-500.0,0.00017534,3]
[402291187,1768649478126,-524.86,0.00017534,3]
[402291188,1768649478136,-544.01,0.00017534,3]
[402291189,1768649478146,-784.71,0.00017534,3]
[402291190,1768649478155,-953.58,0.00017534,3]
[402291191,1768649478165,-510.56,0.00017534,3]
[402291192,1768649478175,-1016.13,0.00017534,3]
[402291193,1768649478184,-500.0,0.00017534,3]
[402291194,1768649478193,-587.21,0.00017534,3]
[402291195,1768649478203,-785.77,0.00017534,3]
[402291196,1768649478212,-500.0,0.00017534,3]
[402291197,1768649478221,-1289.75,0.00017534,3]
[402291198,1768649478230,-848.03,0.00017534,3]
[402291199,1768649478240,-500.0,0.00017534,3]
[402291200,1768649478249,-816.49,0.00017534,3]
[402291201,1768649478258,-1000.0,0.00017534,2]
[402291202,1768649478267,-500.0,0.00017534,3]
[402291203,1768649478276,-500.0,0.00017534,3]
[402291204,1768649478285,-500.0,0.00017534,3]
[402291205,1768649478294,-649.2,0.00017534,3]
[402291206,1768649478304,-500.0,0.00017534,3]
[402291207,1768649478313,-500.0,0.00017534,3]
[402291208,1768649478323,-500.0,0.00017534,3]
[402291209,1768649478332,-667.06,0.00017534,3]
[402291210,1768649478341,-500.0,0.00017534,3]
[402291211,1768649478350,-500.0,0.00017534,3]
[402291212,1768649478359,-1441.58,0.00017534,3]
[402291213,1768649478368,-500.0,0.00017534,3]
[402291214,1768649478378,-513.41,0.00017534,3]
[402291215,1768649478387,-500.0,0.00017534,3]
[402291216,1768649478397,-1507.14,0.00017534,3]
[402291217,1768649478406,-500.0,0.00017534,3]
[402291218,1768649478415,-500.0,0.00017534,3]
[402291219,1768649478424,-500.0,0.00017534,3]
[402291220,1768649478434,-500.0,0.00017534,3]
[402291221,1768649478443,-1074.96,0.00017534,3]
[402291222,1768649478452,-790.89,0.00017534,3]
[402291223,1768649478461,-500.0,0.00017534,3]
[402291224,1768649478471,-875.03,0.00017534,3]
[402291225,1768649478480,-500.0,0.00017534,3]
[402291226,1768649478489,-681.74,0.00017534,3]
[402291227,1768649478498,-713.54,0.00017534,3]
[402291228,1768649478507,-500.0,0.00017534,3]
[402291229,1768649478516,-740.56,0.00017534,3]
[402291230,1768649478526,-512.63,0.00017534,3]
[402291231,1768649478535,-877.22,0.00017534,3]
[402291232,1768649478544,-500.0,0.00017534,3]
[402291233,1768649478554,-1834.58,0.00017534,3]
[402291234,1768649478564,-500.0,0.00017534,3]
[402291235,1768649478573,-500.0,0.00017534,3]
[402291236,1768649478583,-500.0,0.00017534,3]
[402291237,1768649478592,-500.0,0.00017534,3]
[402291238,1768649478601,-500.0,0.00017534,3]
[402291239,1768649478610,-1262.64,0.00017534,3]
[402291240,1768649478620,-500.0,0.00017534,3]
[402291241,1768649478629,-500.0,0.00017534,3]
[402291242,1768649478639,-814.83,0.00017534,3]
[402291243,1768649478648,-500.0,0.00017534,3]
[402291244,1768649478657,-215.10452107,0.00017534,3]
[402291245,1768649478667,-500.0,0.00017534,3]
[402291246,1768649478676,-791.33,0.00017534,3]
[402291247,1768649478685,-500.0,0.00017534,3]
[402291248,1768649478695,-584.24,0.00017534,3]
[402291249,1768649478704,-904.51,0.00017534,3]
[402291250,1768649478714,-500.0,0.00017534,3]
[402291251,1768649478723,-500.0,0.00017534,3]
[402291252,1768649478732,-995.62,0.00017534,3]
[402291253,1768649478742,-1454.21,0.00017534,3]
[402291254,1768649478751,-558.41,0.00017534,3]
[402291255,1768649478761,-500.0,0.00017534,3]
[402291256,1768649478772,-500.0,0.00017534,3]
[402291257,1768649478787,-500.0,0.00017534,3]
[402291258,1768649478796,-500.0,0.00017534,3]
[402291259,1768649478805,-500.0,0.00017534,2]
[402291260,1768649478815,-500.0,0.00017534,3]
[402291261,1768649478824,-500.0,0.00017534,3]
[402291262,1768649478834,-500.0,0.00017534,3]
[402291263,1768649478843,-500.0,0.00017534,3]
[402291264,1768649478853,-500.0,0.00017534,3]
[402291265,1768649478862,-500.0,0.00017534,3]
[402291266,1768649478872,-518.28,0.00017534,3]
[402291267,1768649478881,-500.0,0.00017534,3]
[402291268,1768649478890,-648.04,0.00017534,3]
[402291269,1768649478899,-1286.45,0.00017534,3]
[402291270,1768649478909,-1134.77,0.00017534,3]
[402291271,1768649478918,-500.0,0.00017534,3]
[402291272,1768649478927,-477.91575694,0.00017534,3]
[402291273,1768649478937,-500.0,0.00017534,3]
[402291274,1768649478946,-432.39590391,0.00017534,3]
[402291275,1768649478956,-500.0,0.00017534,3]
[402291276,1768649478965,-500.0,0.00017534,3]
[402291277,1768649478975,-500.0,0.00017534,3]
[402291278,1768649478984,-500.0,0.00017534,3]
[402291279,1768649478993,-500.0,0.00017534,3]
[402291280,1768649479003,-500.0,0.00017534,3]
[402291281,1768649479012,-1305.23,0.00017534,3]
[402291282,1768649479021,-500.0,0.00017534,3]
[402291283,1768649479031,-593.05,0.00017534,3]
[402291284,1768649479040,-500.0,0.00017534,3]
[402291285,1768649479050,-895.32,0.00017534,3]
[402291286,1768649479058,-556.6,0.00017534,3]
[402291287,1768649479067,-500.0,0.00017534,3]
[402291288,1768649479077,-500.0,0.00017534,3]
[402291289,1768649479087,-592.12,0.00017534,3]
[402291290,1768649479096,-1170.72,0.00017534,3]
[402291291,1768649479105,-500.0,0.00017534,3]
[402291292,1768649479115,-500.0,0.00017534,3]
[402291293,1768649479124,-500.0,0.00017534,3]
[402291294,1768649479134,-500.0,0.00017534,3]
[402291295,1768649479143,-500.0,0.00017534,3]
[402291296,1768649479153,-500.0,0.00017534,3]
[402291297,1768649479162,-501.58,0.00017534,3]
[402291298,1768649479171,-797.95,0.00017534,3]
[402291299,1768649479181,-902.93,0.00017534,3]
[402291300,1768649479190,-1478.48,0.00017534,3]
[402291301,1768649479200,-931.1,0.00017534,3]
[402291302,1768649479209,-500.0,0.00017534,2]
[402291303,1768649479219,-500.0,0.00017534,3]
[402291304,1768649479229,-500.0,0.00017534,3]
[402291305,1768649479238,-500.0,0.00017534,3]
[402291306,1768649479248,-500.0,0.00017534,3]
[402291307,1768649479257,-500.0,0.00017534,3]
[402291308,1768649479267,-500.0,0.00017534,3]
[402291309,1768649479277,-500.0,0.00017534,3]
[402291310,1768649479286,-887.98,0.00017534,3]
[402291311,1768649479298,-500.0,0.00017534,3]
[402291312,1768649479308,-842.12,0.00017534,3]
[402291313,1768649479318,-500.0,0.00017534,3]
[402291314,1768649479329,-500.0,0.00017534,3]
[402291315,1768649479339,-1511.79,0.00017534,3]
[402291316,1768649479348,-500.0,0.00017534,3]
[402291317,1768649479358,-500.0,0.00017534,3]
[402291318,1768649479367,-600.34,0.00017534,3]
[402291319,1768649479376,-500.0,0.00017534,3]
[402291320,1768649479387,-500.0,0.00017534,3]
[402291321,1768649479398,-745.23,0.00017534,3]
[402291322,1768649479407,-500.0,0.00017534,3]
[402291323,1768649479418,-500.0,0.00017534,3]
[402291324,1768649479429,-1200.0,0.00017534,2]
[402291325,1768649479439,-500.0,0.00017534,3]
[402291326,1768649479450,-500.0,0.00017534,3]
[402291327,1768649479460,-500.0,0.00017534,3]
[402291328,1768649479469,-500.0,0.00017534,3]
[402291329,1768649479478,-500.0,0.00017534,3]
[402291330,1768649479487,-697.62,0.00017534,3]
[402291331,1768649479498,-500.0,0.00017534,3]
[402291332,1768649479508,-500.0,0.00017534,3]
[402291333,1768649479518,-618.2,0.00017534,3]
[402291334,1768649479527,-1774.68,0.00017534,3]
[402291335,1768649479537,-500.0,0.00017534,3]
[402291336,1768649479546,-942.63,0.00017534,3]
[402291337,1768649479556,-500.0,0.00017534,3]
[402291338,1768649479566,-500.0,0.00017534,3]
[402291339,1768649479575,-500.0,0.00017534,3]
[402291340,1768649479585,-500.0,0.00017534,3]
[402291341,1768649479595,-1586.94,0.00017534,3]
[402291342,1768649479603,-500.0,0.00017534,3]
[402291343,1768649479612,-500.0,0.00017534,3]
[402291344,1768649479621,-500.0,0.00017534,3]
[402291345,1768649479631,-540.84,0.00017534,3]
[402291346,1768649479642,-1084.84,0.00017534,3]
[402291347,1768649479653,-523.27211583,0.00017534,3]
[402291348,1768649479662,-500.0,0.00017534,3]
[402291349,1768649479672,-693.7,0.00017534,3]
[402291350,1768649479683,-1859.94,0.00017534,3]
[402291351,1768649479692,-500.0,0.00017534,3]
[402291352,1768649479702,-500.0,0.00017534,3]
[402291353,1768649479712,-500.0,0.00017534,3]
[402291354,1768649479721,-500.0,0.00017534,3]
[402291355,1768649479732,-500.0,0.00017534,3]
[402291356,1768649479741,-500.0,0.00017534,3]
[402291357,1768649479750,-500.0,0.00017534,3]
[402291358,1768649479761,-500.0,0.00017534,3]
[402291359,1768649479771,-500.0,0.00017534,3]
[402291360,1768649479784,-500.0,0.00017534,3]
[402291361,1768649479794,-782.75,0.00017534,3]
[402291362,1768649479805,-500.0,0.00017534,3]
[402291363,1768649479815,-752.05,0.00017534,3]
[402291364,1768649479825,-500.0,0.00017534,3]
[402291365,1768649479835,-500.0,0.00017534,3]
[402291366,1768649479846,-611.98339815,0.00017534,3]
[402291367,1768649479855,-775.14,0.00017534,3]
[402291368,1768649479865,-259.47517722,0.00017534,3]
[402291369,1768649479874,-2140.55,0.00017534,3]
[402291370,1768649479883,-500.0,0.00017534,3]
[402291371,1768649479893,-1600.91,0.00017534,3]
[402291372,1768649479902,-500.0,0.00017534,3]
[402291373,1768649479911,-500.0,0.00017534,3]
[402291374,1768649479920,-500.0,0.00017534,3]
[402291375,1768649479929,-500.0,0.00017534,3]
[402291376,1768649479938,-500.0,0.00017534,3]
[402291377,1768649479947,-500.0,0.00017534,3]
[402291378,1768649479957,-500.0,0.00017534,3]
[402291379,1768649479966,-500.0,0.00017534,3]
[402291380,1768649479976,-500.0,0.00017534,3]
[402291381,1768649479985,-540.2,0.00017534,3]
[402291382,1768649479995,-500.0,0.00017534,3]
[402291383,1768649480006,-500.0,0.00017534,3]
[402291384,1768649480016,-691.55,0.00017534,3]
[402291385,1768649480025,-364.90375644,0.00017534,3]
[402291386,1768649480035,-2007.96,0.00017534,3]
[402291387,1768649480044,-835.27,0.00017534,3]
[402291388,1768649480053,-1472.9,0.00017534,3]
[402291389,1768649480063,-1210.81,0.00017534,3]
[402291390,1768649480073,-500.0,0.00017534,3]
[402291391,1768649480082,-604.57,0.00017534,3]
[402291392,1768649480091,-500.0,0.00017534,3]
[402291393,1768649480100,-500.0,0.00017534,3]
[402291394,1768649480109,-1776.82,0.00017534,3]
[402291395,1768649480118,-226.36836068,0.00017534,3]
[402291396,1768649480128,-500.0,0.00017534,3]
[402291397,1768649480138,-500.0,0.00017534,3]
[402291398,1768649480147,-582.22,0.00017534,3]
[402291399,1768649480156,-1240.14,0.00017534,3]
[402291400,1768649480165,-500.0,0.00017534,3]
[402291401,1768649480174,-884.93,0.00017534,3]
[402291402,1768649480183,-500.0,0.00017534,3]
[402291403,1768649480192,-628.44,0.00017534,3]
[402291404,1768649480201,-500.0,0.00017534,3]
[402291405,1768649480210,-529.79,0.00017534,3]
[402291406,1768649480219,-500.0,0.00017534,3]
[402291407,1768649480228,-500.0,0.00017534,3]
[402291408,1768649480238,-500.0,0.00017534,3]
[402291409,1768649480247,-500.0,0.00017534,3]
[402291410,1768649480256,-500.0,0.00017534,3]
[402291411,1768649480265,-500.0,0.00017534,3]
[402291412,1768649480274,-456.1033492,0.00017534,2]
[402291413,1768649480283,-500.0,0.00017534,3]
[402291414,1768649480293,-511.03,0.00017534,3]
[402291415,1768649480302,-1076.17,0.00017534,3]
[402291416,1768649480311,-500.0,0.00017534,3]
[402291417,1768649480321,-1251.31,0.00017534,3]
[402291418,1768649480330,-993.75,0.00017534,3]
[402291419,1768649480340,-500.0,0.00017534,3]
[402291420,1768649480350,-592.17,0.00017534,3]
[402291421,1768649480359,-500.0,0.00017534,3]
[402291422,1768649480368,-1040.39,0.00017534,3]
[402291423,1768649480379,-1158.63,0.00017534,3]
[402291424,1768649480387,-500.0,0.00017534,3]
[402291425,1768649480396,-1446.98,0.00017534,3]
[402291426,1768649480405,-390.42,0.00017534,3]
[402291427,1768649480415,-585.26643986,0.00017534,3]
[402291428,1768649480425,-500.0,0.00017534,3]
[402291429,1768649480435,-553.77,0.00017534,3]
[402291430,1768649480445,-1160.93,0.00017534,3]
[402291431,1768649480455,-789.43,0.00017534,3]
[402291432,1768649480466,-500.0,0.00017534,3]
[402291433,1768649480475,-781.61,0.00017534,3]
[402291434,1768649480486,-677.45,0.00017534,3]
[402291435,1768649480496,-1417.89,0.00017534,3]
[402291436,1768649480505,-500.0,0.00017534,3]
[402291437,1768649480514,-1042.85,0.00017534,3]
[402291438,1768649480524,-509.58,0.00017534,3]
[402291439,1768649480534,-882.89,0.00017534,3]
[402291440,1768649480544,-1329.23,0.00017534,3]
[402291441,1768649480554,-784.38,0.00017534,3]
[402291442,1768649480565,-952.33,0.00017534,3]
[402291443,1768649480575,-500.0,0.00017534,3]
[402291444,1768649480585,-936.94,0.00017534,3]
[402291445,1768649480594,-500.0,0.00017534,3]
[402291446,1768649480604,-1708.14,0.00017534,3]
[402291447,1768649480613,-500.0,0.00017534,3]
[402291448,1768649480623,-982.82,0.00017534,3]
[402291449,1768649480633,-500.0,0.00017534,3]
[402291450,1768649480643,-647.1,0.00017534,3]
[402291451,1768649480653,-593.22,0.00017534,3]
[402291452,1768649480662,-500.0,0.00017534,3]
[402291453,1768649480671,-550.51,0.00017534,3]
[402291454,1768649480680,-700.82,0.00017534,3]
[402291455,1768649480689,-500.0,0.00017534,3]
[402291456,1768649480699,-500.0,0.00017534,3]
[402291457,1768649480708,-500.0,0.00017534,3]
[402291458,1768649480717,-500.0,0.00017534,3]
[402291459,1768649480726,-500.0,0.00017534,3]
[402291460,1768649480735,-500.0,0.00017534,3]
[402291461,1768649480745,-500.0,0.00017534,3]
[402291462,1768649480755,-500.0,0.00017534,3]
[402291463,1768649480764,-500.0,0.00017534,3]
[402291464,1768649480777,-500.0,0.00017534,3]
[402291465,1768649480787,-500.0,0.00017534,3]
[402291466,1768649480797,-1436.34,0.00017534,3]
[402291467,1768649480806,-500.0,0.00017534,3]
[402291468,1768649480817,-500.0,0.00017534,3]
[402291469,1768649480827,-500.0,0.00017534,3]
[402291470,1768649480837,-588.13,0.00017534,3]
[402291471,1768649480847,-1686.51,0.00017534,3]
[402291472,1768649480857,-500.0,0.00017534,3]
[402291473,1768649480867,-500.0,0.00017534,3]
[402291474,1768649480876,-1458.01,0.00017534,3]
[402291475,1768649480886,-1003.45,0.00017534,3]
[402291476,1768649480896,-500.0,0.00017534,3]
[402291477,1768649480906,-2354.26,0.00017534,3]
[402291478,1768649480916,-500.0,0.00017534,3]
[402291479,1768649480925,-500.0,0.00017534,3]
[402291480,1768649480935,-1932.31,0.00017534,3]
[402291481,1768649480944,-1910.88,0.00017534,3]
[402291482,1768649480953,-904.86,0.00017534,3]
[402291483,1768649480963,-511.37056454,0.00017534,3]
[402291484,1768649480972,-500.0,0.00017534,3]
[402291485,1768649480981,-742.45,0.00017534,3]
[402291486,1768649480990,-1293.83,0.00017534,3]
[402291487,1768649481000,-500.0,0.00017534,3]
[402291488,1768649481011,-501.96,0.00017534,3]
[402291489,1768649481020,-500.0,0.00017534,3]
[402291490,1768649481029,-1515.25,0.00017534,3]
[402291491,1768649481038,-434.32561302,0.00017534,3]
[402291492,1768649481048,-500.0,0.00017534,3]
[402291493,1768649481057,-765.96,0.00017534,3]
[402291494,1768649481066,-771.05,0.00017534,3]
[402291495,1768649481076,-500.0,0.00017534,3]
[402291496,1768649481085,-244.26437665,0.00017534,3]
[402291497,1768649481095,-1376.88,0.00017534,3]
[402291498,1768649481104,-500.0,0.00017534,3]
[402291499,1768649481114,-500.0,0.00017534,3]
[402291500,1768649481123,-500.0,0.00017534,3]
[402291501,1768649481132,-523.35,0.00017534,3]
[402291502,1768649481140,-500.0,0.00017534,3]
[402291503,1768649481150,-500.0,0.00017534,3]
[402291504,1768649481159,-1132.82,0.00017534,3]
[402291505,1768649481168,-500.0,0.00017534,3]
[402291506,1768649481178,-1546.28,0.00017534,3]
[402291507,1768649481187,-1000.0,0.00017534,2]
[402291508,1768649481196,-500.0,0.00017534,3]
[402291509,1768649481205,-521.93686507,0.00017534,3]
[402291510,1768649481404,-500.0,0.00017534,3]
[402291511,1768649481414,-500.0,0.00017534,3]
[402291512,1768649481424,-500.0,0.00017534,3]
[402291513,1768649481433,-563.8,0.00017534,3]
[402291514,1768649481442,-811.88,0.00017534,3]
[402291515,1768649481451,-2590.78,0.00017534,3]
[402291516,1768649481460,-500.0,0.00017534,3]
[402291517,1768649481470,-2047.3,0.00017534,3]
[402291518,1768649481480,-1579.55,0.00017534,3]
[402291519,1768649481489,-500.0,0.00017534,3]
[402291520,1768649481498,-500.0,0.00017534,3]
[402291521,1768649481507,-500.0,0.00017534,3]
[402291522,1768649481516,-500.0,0.00017534,3]
[402291523,1768649481526,-500.0,0.00017534,3]
[402291524,1768649481535,-500.0,0.00017534,3]
[402291525,1768649481544,-1222.94,0.00017534,3]
[402291526,1768649481553,-632.92,0.00017534,3]
[402291527,1768649481562,-500.0,0.00017534,3]
[402291528,1768649481571,-500.0,0.00017534,3]
[402291529,1768649481580,-758.74,0.00017534,3]
[402291530,1768649481589,-500.0,0.00017534,3]
[402291531,1768649481598,-500.0,0.00017534,3]
[402291532,1768649481607,-500.0,0.00017534,3]
[402291533,1768649481616,-500.0,0.00017534,3]
[402291534,1768649481624,-1366.17,0.00017534,3]
[402291535,1768649481638,-500.0,0.00017534,3]
[402291536,1768649481647,-500.0,0.00017534,3]
[402291537,1768649481656,-694.6,0.00017534,3]
[402291538,1768649481665,-817.66,0.00017534,3]
[402291539,1768649481674,-500.0,0.00017534,3]
[402291540,1768649481683,-1832.06,0.00017534,3]
[402291541,1768649481692,-593.12,0.00017534,3]
[402291542,1768649481701,-535.22,0.00017534,3]
[402291543,1768649481710,-592.02,0.00017534,3]
[402291544,1768649481721,-1387.56,0.00017534,3]
[402291545,1768649481730,-694.92,0.00017534,3]
[402291546,1768649481740,-3630.43,0.00017534,3]
[402291547,1768649481750,-577.36,0.00017534,3]
[402291548,1768649481759,-500.0,0.00017534,3]
[402291549,1768649481769,-1054.42,0.00017534,3]
[402291550,1768649481782,-500.0,0.00017534,3]
[402291551,1768649481793,-500.0,0.00017534,3]
[402291552,1768649481803,-500.0,0.00017534,3]
[402291553,1768649481813,-545.24616728,0.00017534,3]
[402291554,1768649481822,-1391.15,0.00017534,3]
[402291555,1768649481833,-1048.64,0.00017534,3]
[402291556,1768649481842,-1108.81,0.00017534,3]
[402291557,1768649481851,-500.0,0.00017534,3]
[402291558,1768649481861,-626.22,0.00017534,3]
[402291559,1768649481869,-606.76,0.00017534,3]
[402291560,1768649481878,-500.0,0.00017534,3]
[402291561,1768649481888,-799.6,0.00017534,3]
[402291562,1768649481897,-1462.53,0.00017534,3]
[402291563,1768649481906,-929.98,0.00017534,3]
[402291564,1768649481915,-1638.57,0.00017534,3]
[402291565,1768649481925,-500.0,0.00017534,3]
[402291566,1768649481934,-500.0,0.00017534,3]
[402291567,1768649481943,-671.14,0.00017534,3]
[402291568,1768649481952,-500.0,0.00017534,3]
[402291569,1768649481961,-1056.64,0.00017534,3]
[402291570,1768649481971,-500.0,0.00017534,3]
[402291571,1768649481980,-980.65,0.00017534,3]
[402291572,1768649481990,-500.0,0.00017534,3]
[402291573,1768649481999,-500.0,0.00017534,3]
[402291574,1768649482009,-1813.35,0.00017534,3]
[402291575,1768649482019,-500.0,0.00017534,3]
[402291576,1768649482028,-1240.51,0.00017534,3]
[402291577,1768649482037,-1353.35,0.00017534,3]
[402291578,1768649482046,-500.0,0.00017534,3]
[402291579,1768649482056,-500.0,0.00017534,3]
[402291580,1768649482065,-500.0,0.00017534,3]
[402291581,1768649482074,-1645.77,0.00017534,3]
[402291582,1768649482083,-892.73,0.00017534,3]
[402291583,1768649482093,-2044.1,0.00017534,3]
[402291584,1768649482102,-692.82,0.00017534,3]
[402291585,1768649482111,-500.0,0.00017534,3]
[402291586,1768649482120,-699.9,0.00017534,3]
[402291587,1768649482129,-500.0,0.00017534,3]
[402291588,1768649482138,-500.0,0.00017534,3]
[402291589,1768649482147,-568.79,0.00017534,3]
[402291590,1768649482157,-700.19,0.00017534,3]
[402291591,1768649482165,-634.82538104,0.00017534,3]
[402291592,1768649482175,-500.0,0.00017534,3]
[402291593,1768649482185,-939.73,0.00017534,3]
[402291594,1768649482196,-1081.34,0.00017534,3]
[402291595,1768649482205,-500.0,0.00017534,3]
[402291596,1768649482214,-500.0,0.00017534,3]
[402291597,1768649482223,-528.91250035,0.00017534,3]
[402291598,1768649482233,-1177.76,0.00017534,3]
[402291599,1768649482242,-500.0,0.00017534,3]
[402291600,1768649482252,-611.38,0.00017534,3]
[402291601,1768649482261,-500.0,0.00017534,3]
[402291602,1768649482271,-500.0,0.00017534,3]
[402291603,1768649482281,-530.24218336,0.00017534,3]
[402291604,1768649482291,-913.11,0.00017534,3]
[402291605,1768649482300,-500.0,0.00017534,3]
[402291606,1768649482309,-500.0,0.00017534,3]
[402291607,1768649482318,-1044.14,0.00017534,3]
[402291608,1768649482327,-500.0,0.00017534,3]
[402291609,1768649482336,-500.0,0.00017534,3]
[402291610,1768649482347,-500.0,0.00017534,3]
[402291611,1768649482357,-1326.69,0.00017534,3]
[402291612,1768649482367,-500.0,0.00017534,3]
[402291613,1768649482377,-453.08603643,0.00017534,3]
[402291614,1768649482386,-1255.88,0.00017534,3]
[402291615,1768649482396,-500.0,0.00017534,3]
[402291616,1768649482405,-500.0,0.00017534,3]
[402291617,1768649482414,-500.0,0.00017534,3]
[402291618,1768649482423,-500.0,0.00017534,3]
[402291619,1768649482433,-2815.19,0.00017534,3]
[402291620,1768649482443,-501.51,0.00017534,3]
[402291621,1768649482453,-1106.71,0.00017534,3]
[402291622,1768649482463,-500.0,0.00017534,3]
[402291623,1768649482472,-1559.59,0.00017534,3]
[402291624,1768649482482,-567.25,0.00017534,3]
[402291625,1768649482492,-1098.82,0.00017534,3]
[402291626,1768649482503,-503.22,0.00017534,3]
[402291627,1768649482512,-863.18,0.00017534,3]
[402291628,1768649482522,-1622.28,0.00017534,3]
[402291629,1768649482533,-500.0,0.00017534,3]
[402291630,1768649482543,-500.0,0.00017534,3]
[402291631,1768649482552,-500.0,0.00017534,3]
[402291632,1768649482562,-500.0,0.00017534,3]
[402291633,1768649482573,-500.0,0.00017534,3]
[402291634,1768649482584,-500.0,0.00017534,3]
[402291635,1768649482595,-500.0,0.00017534,3]
[402291636,1768649482605,-1431.76,0.00017534,3]
[402291637,1768649482615,-8441.37,0.00017534,3]